[Event "4NCL 2022-2023"]
[Site "Daventry"]
[Date "2023.01.15"]
[Round "4.43"]
[White "Bates, Richard A"]
[Black "Harvey, Marcus R"]
[Result "0-1"]
[ECO "E16"]
[WhiteElo "2339"]
[BlackElo "2466"]
[Annotator "TA"]
[PlyCount "150"]
[EventDate "2022.10.20"]
[EventType "team-tourn"]
[EventCountry "ENG"]
[SourceTitle "playchess.com"]
[Source "ChessBase"]
[SourceQuality "1"]
[TimeControl "40/6000+30:2400+30"]

{[%evp 11,150,37,19,0,-3,-14,-8,-11,0,0,0,0,15,0,18,0,4,-32,-17,-48,-16,-8,-14,-21,-6,-19,0,-8,18,7,16,16,54,57,53,52,47,55,50,43,58,35,47,16,15,11,15,11,11,8,8,0,9,0,0,0,0,0,0,0,0,0,0,0,5,0,0,0,0,0,2,0,0,0,0,0,0,0,0,0,0,0,0,0,6,8,67,0,0,0,0,0,0,0,0,0,0,0,0,0,0,0,0,0,0,0,0,0,0,0,0,-8,-8,-8,-8,-584,-567,-310,-483,-442,-335,-335,-335,-1004,-636,-620,-595,-621,-610,-588,-588,-29963,-29962,-29966,-29967,-29965,-29967,-29968,-29966,-29964,-29962]} 1. d4 {[%emt 0:09:55]} Nf6 {[%emt 0:00:09]} 2. Nf3 {[%emt 0:00:19]} e6 {[%emt 0:00:36]} 3. c4 {[%emt 0:01:35]} b6 {[%emt 0:00:26]} 4. g3 {[%emt 0:00:09]} Bb7 {[%emt 0:00:09]} 5. Bg2 {[%emt 0:00:05]} c5 {[%emt 0:00:12]} 6. d5 {[%emt 0:01:29]} exd5 {[%emt 0:00:05]} 7. cxd5 {[%emt 0:05:21] E16: Queen's Indian: 4 g3 Bb7 5 Bg2 Bb4+.} Bxd5 {[%emt 0:02:44]} 8. O-O {[%emt 0:09:26][%cal Oe2e4]} Be7 {[%emt 0:02:06]} 9. Re1 {[%emt 0:05:12] The position is equal.} O-O {[%emt 0:17:45]} 10. e4 {[%emt 0:05:25]} Bc6 {[%emt 0:06:17]} 11. Nc3 {[%emt 0:14:42] [#]} Ne8 $146 {[%emt 0:00:55][%cal Bf6e8,Be8c7,Bc7e6][%mdl 32]} ({Predecessor:} 11... d6 12. Bf4 Nh5 13. Be3 Nd7 14. Qe2 Nhf6 15. Bf4 Qc7 16. Rad1 Rfe8 17. e5 dxe5 18. Nxe5 Nxe5 19. Bxe5 {0-1 Moranda,W (2593)-Iturrizaga Bonelli,E (2637) PRO League Stage rapid 2019 (3)}) 12. Ne5 {[%emt 0:10:34]} Nc7 {[%emt 0:07:50]} 13. Nxc6 {[%emt 0:01:01]} Nxc6 {[%emt 0:01:14]} 14. e5 {[%emt 0:03:17] Prevents Bf6} Rc8 {[%emt 0:03:04]} 15. Qg4 {[%emt 0:14:35]} Ne6 {[%emt 0:01:57]} (15... Nd4 {seems wilder.} 16. Bh6 Nce6 17. Rac1 Bg5) 16. f4 {[%emt 0:06:38]} f5 {[%emt 0:06:02]} 17. exf6 {[%emt 0:04:03]} Bxf6 {[%emt 0:03:52]} ({But not} 17... Rxf6 18. Bxc6 h5 19. Qxh5 Rxc6 20. Be3 $14) 18. Be3 {[%emt 0:01:28]} ({Don't blunder} 18. Rxe6 $2 dxe6 19. Be3 (19. Qxe6+ $2 {loses.} Kh8 $19) 19... Nd4 $19) 18... Bd4 {[%emt 0:08:17]} 19. Rad1 {[%emt 0:03:05]} Ne7 {[%emt 0:05:54]} 20. Be4 {[%emt 0:02:14]} g6 {[%emt 0:00:29]} 21. Nb5 {[%emt 0:00:48][%csl LRa7,LRd4]} Bxe3+ {[%emt 0:07:11]} 22. Rxe3 {[%emt 0:00:05][%cal Oe4g6] Black must now prevent Bxg6!} Nd4 $1 {[%emt 0:01:31]} 23. Nxd4 {[%emt 0:00:32]} cxd4 {[%emt 0:00:03]} 24. Rxd4 {[%emt 0:01:14]} Nf5 {[%emt 0:04:01]} 25. Bxf5 {[%emt 0:00:17]} Rxf5 {[%emt 0:00:05]} 26. Qe2 {[%emt 0:04:30] Repels Rc2} Rf7 {[%emt 0:05:25] Inhibits Re7.} 27. Rc4 {[%emt 0:03:45]} Rxc4 {[%emt 0:01:39]} 28. Qxc4 $11 {[%emt 0:00:04][%mdl 4096] Endgame KQR-KQR} Kg7 {[%emt 0:03:28]} 29. Qd4+ {[%emt 0:00:33]} Qf6 {[%emt 0:00:59]} 30. Rd3 {[%emt 0:01:05]} Qxd4+ {[%emt 0:00:37]} 31. Rxd4 {[%emt 0:00:04] KR-KR} Kf6 {[%emt 0:00:23]} 32. Kf2 {[%emt 0:00:05]} Ke6 {[%emt 0:01:26]} 33. Re4+ {[%emt 0:00:25]} Kd5 {[%emt 0:00:13]} 34. Ke3 {[%emt 0:00:10]} d6 {[%emt 0:02:09]} 35. Rd4+ {[%emt 0:01:11]} Kc5 {[%emt 0:00:13]} 36. Re4 {[%emt 0:00:45]} Rc7 {[%emt 0:01:39]} 37. Kd3 {[%emt 0:00:15]} Kd5 {[%emt 0:00:06] Prevents Rc4.} 38. Rd4+ {[%emt 0:00:27]} Ke6 {[%emt 0:00:06]} 39. Re4+ {[%emt 0:01:34]} Kd7 {[%emt 0:01:47]} 40. Rc4 {[%emt 0:00:24] Black should prevent Rxc7+.} Rc5 {[%emt 0:01:26]} 41. b4 {[%emt 0:00:00]} Rh5 {[%emt 0:00:00]} 42. Rc2 {[%emt 0:00:00]} Rd5+ {[%emt 0:00:00]} 43. Ke2 {[%emt 0:00:00]} Rd4 {[%emt 0:00:00]} 44. a3 {[%emt 0:00:00]} Re4+ {[%emt 0:00:00]} 45. Kd2 {[%emt 0:00:40]} d5 {[%emt 0:01:05]} 46. Rc3 {[%emt 0:08:52]} Kd6 {[%emt 0:11:57]} 47. Rc8 {[%emt 0:08:31]} Re7 {[%emt 0:03:16]} 48. Kd3 {[%emt 0:02:22]} Kd7 {[%emt 0:00:33]} (48... Re1 $11) 49. Rc1 {[%emt 0:02:40]} ({White should try} 49. Rf8 $14) 49... Re4 {[%emt 0:00:43]} 50. Rf1 {[%emt 0:01:28]} a5 {[%emt 0:03:27]} 51. bxa5 {[%emt 0:02:41]} bxa5 {[%emt 0:00:14]} 52. f5 {[%emt 0:03:14]} Ke7 {[%emt 0:06:31]} 53. fxg6 {[%emt 0:02:45]} hxg6 {[%emt 0:00:15]} 54. Rb1 {[%emt 0:01:21]} Ra4 {[%emt 0:00:17]} 55. Rb6 {[%emt 0:02:06]} Kf7 {[%emt 0:01:59]} 56. Rb3 {[%emt 0:05:14]} Ke6 {[%emt 0:01:12]} 57. Ke3 {[%emt 0:02:43]} Ke5 {[%emt 0:02:36]} 58. Kd3 {[%emt 0:00:50]} g5 {[%emt 0:00:17]} 59. h3 {[%emt 0:01:27]} Rd4+ {[%emt 0:00:08]} 60. Ke3 {[%emt 0:00:29]} Rc4 {[%emt 0:00:10]} 61. Kd3 {[%emt 0:00:42]} Rc1 {[%emt 0:00:27] With the idea ...Ra1.} 62. h4 {[%emt 0:03:30]} g4 {[%emt 0:06:25] aiming for ...Ra1.} 63. Rb5 $2 {[%emt 0:00:33][%mdl 8192] Now White is beyond hope.} (63. Rb8 $11 {and White is okay.}) 63... Rg1 $19 {[%emt 0:00:24]} 64. Rxa5 {[%emt 0:00:23]} Rxg3+ {[%emt 0:00:08]} 65. Ke2 {[%emt 0:00:21]} Rg2+ {[%emt 0:01:30]} 66. Kf1 {[%emt 0:00:57]} Rh2 {[%emt 0:01:12][%cal Oe5e4]} 67. Ra8 $2 {[%emt 0:00:44]} (67. a4 Rxh4 68. Ra8) 67... Rxh4 {[%emt 0:01:31] ...Rh2 is the strong threat.} 68. a4 {[%emt 0:00:19]} Rh2 {[%emt 0:01:49] ...d4 would be deadly.} 69. Rg8 {[%emt 0:00:11] [#]} Kf4 $1 {[%emt 0:00:15]} 70. Rf8+ {[%emt 0:00:21]} Kg3 {[%emt 0:00:41] Strongly threatening ...Rh1+.} 71. Rd8 {[%emt 0:00:19]} Ra2 {[%emt 0:03:31] Black mates.} 72. Rxd5 {[%emt 0:00:08] [#]} Ra1+ $1 {[%emt 0:00:04]} 73. Ke2 {[%emt 0:00:05]} Rxa4 {[%emt 0:00:02]} 74. Rd2 {[%emt 0:01:14]} Rf4 {[%emt 0:00:48]} 75. Ke1 {[%emt 0:00:28]} Kh3 {[%emt 0:00:12] Weighted Error Value: White=0.06 (flawless) /Black=0.07 (flawless)} 0-1

[Event "4NCL 2022-2023"]
[Site "Daventry"]
[Date "2023.01.15"]
[Round "4.44"]
[White "Fitzsimons, David"]
[Black "Ledger, Andrew J"]
[Result "1-0"]
[ECO "C10"]
[WhiteElo "2339"]
[BlackElo "2314"]
[Annotator "TA"]
[PlyCount "63"]
[EventDate "2022.10.20"]
[EventType "team-tourn"]
[EventCountry "ENG"]
[SourceTitle "playchess.com"]
[Source "ChessBase"]
[SourceQuality "1"]
[TimeControl "40/6000+30:2400+30"]

{[%evp 12,63,41,15,30,25,28,29,27,28,48,56,50,52,56,31,35,38,53,38,45,29,29,16,75,77,64,8,25,20,26,30,21,27,29,20,80,93,88,76,122,107,95,66,52,33,113,109,123,119,29996,29997,29997,29998]} 1. e4 {[%emt 0:04:33]} e6 {[%emt 0:00:53]} 2. d4 {[%emt 0:00:37]} d5 {[%emt 0:00:07]} 3. Nc3 {[%emt 0:00:09]} dxe4 {[%emt 0:00:25]} 4. Nxe4 {[%emt 0:00:08]} Nd7 {[%emt 0:00:06]} 5. Nf3 {[%emt 0:00:15]} Ngf6 {[%emt 0:00:07]} 6. Nxf6+ {[%emt 0:00:32]} Nxf6 {[%emt 0:00:11]} 7. Be3 {[%emt 0:00:37]} Bd6 {[%emt 0:01:55] now scores much better than the old 7...Be7. C10: French with 3 Nc3: Unusual Black 3rd moves and 3...dxe4.} 8. Bd3 {[%emt 0:00:20]} b6 {[%emt 0:02:37]} 9. Qe2 {[%emt 0:00:26]} Bb7 {[%emt 0:02:33] White has an edge.} 10. O-O-O {[%emt 0:00:14]} Qe7 {[%emt 0:05:13]} 11. Kb1 {[%emt 0:00:57]} O-O-O {[%emt 0:02:33] [#]} 12. Rhe1 $146 {[%emt 0:00:59]} ({Predecessor:} 12. c4 c5 13. dxc5 Bxc5 14. Bxc5 Qxc5 15. Ne5 Rhf8 16. f4 Nd7 17. Nf3 Qc7 18. g3 Nc5 19. Bc2 a5 20. Rhe1 h6 {½-½ Neklyudov,T (1876)-Gorodnichev,A (1949) Voronezh op-B 22nd 2018 (6)}) 12... h6 {[%emt 0:05:59]} 13. a3 {[%emt 0:09:38]} Nd5 {[%emt 0:08:20][%cal Od6a3]} 14. Bc1 {[%emt 0:02:48]} Nf4 {[%emt 0:10:12]} 15. Bxf4 {[%emt 0:00:13]} Bxf4 {[%emt 0:00:06]} 16. Ba6 {[%emt 0:01:38] Bxb7+ would be deadly.} c6 $1 {[%emt 0:06:28]} 17. Qe4 {[%emt 0:03:34] Threatens to win with Bxb7+.} Bc7 {[%emt 0:02:45]} (17... Bxa6 $11 {remains equal.} 18. Qxf4 f6) 18. Bxb7+ $16 {[%emt 0:06:06]} Kxb7 {[%emt 0:00:06]} 19. c4 {[%emt 0:00:32]} (19. d5 $1 $14) 19... Qf6 {[%emt 0:10:46]} 20. b4 {[%emt 0:08:38]} Qf4 {[%emt 0:04:14]} 21. Qxf4 {[%emt 0:00:25]} Bxf4 {[%emt 0:00:05] [#]} 22. d5 $1 {[%emt 0:01:15]} cxd5 {[%emt 0:17:38]} 23. cxd5 {[%emt 0:00:24]} Rxd5 {[%emt 0:01:12]} (23... g5 $11 {keeps the balance.}) 24. Rxd5 {[%emt 0:00:40]} exd5 $11 {[%emt 0:00:04][%mdl 4096] Endgame KRB-KRN} 25. Re7+ {[%emt 0:00:09]} Kc6 {[%emt 0:00:36]} ({Better is} 25... Kc8) 26. Rxf7 {[%emt 0:03:14]} g5 {[%emt 0:02:46]} 27. Rxa7 {[%emt 0:07:38] White is more active.} Kb5 {[%emt 0:00:57]} 28. Kc2 {[%emt 0:04:09] Kd3 is the strong threat.} Kc4 {[%emt 0:04:24] [#]} (28... g4 $14 29. Nh4 Bg5) 29. g3 $1 $16 {[%emt 0:01:24]} g4 {[%emt 0:02:43]} 30. Rf7 {[%emt 0:01:25]} Bg5 {[%emt 0:04:25][%mdl 8192]} (30... Bd6 $16) 31. Rc7+ {[%emt 0:00:46]} Kb5 {[%emt 0:00:16]} 32. Nd4+ {[%emt 0:00:09] Weighted Error Value: White=0.08 (flawless) /Black=0.48} 1-0

[Event "4NCL 2022-2023"]
[Site "Daventry"]
[Date "2023.01.15"]
[Round "4.45"]
[White "Duncan, Chris R"]
[Black "Greet, Andrew N"]
[Result "0-1"]
[ECO "D39"]
[WhiteElo "2187"]
[BlackElo "2404"]
[Annotator "TA"]
[PlyCount "86"]
[EventDate "2022.10.20"]
[EventType "team-tourn"]
[EventCountry "ENG"]
[SourceTitle "playchess.com"]
[Source "ChessBase"]
[SourceQuality "1"]
[TimeControl "40/6000+30:2400+30"]

{[%evp 12,86,6,-14,34,37,28,30,26,42,55,37,24,31,35,35,39,0,0,0,0,0,0,-93,-17,-16,-19,-23,-20,-17,-17,-15,-15,-15,-15,-17,-14,-45,-43,-35,-35,-31,-35,-29,-12,-15,14,-58,-33,-74,-15,-14,-16,-15,0,0,0,0,0,-40,-35,-297,-267,-302,-210,-195,-121,-204,-188,-371,-360,-706,-653,-29976,-29977,-29971,-29974]} 1. Nf3 {[%emt 0:03:43]} e6 {[%emt 0:00:12]} 2. c4 {[%emt 0:00:39]} d5 {[%emt 0:00:13]} 3. d4 {[%emt 0:00:16][%cal Bd2d4,Bd4c5][%mdl 32]} Nf6 {[%emt 0:00:10]} 4. Nc3 {[%emt 0:00:14]} Bb4 {[%emt 0:00:17]} 5. Bg5 {[%emt 0:00:32]} dxc4 {[%emt 0:02:09]} 6. e4 {[%emt 0:01:49]} c5 {[%emt 0:01:20]} 7. dxc5 {[%emt 0:00:12] Black must now prevent Qxd8+.} Qa5 {[%emt 0:10:37] D39: Queen's Gambit Declined: Ragozin Defence with 5 Bg5 dxc4.} (7... Bxc3+ $11 8. bxc3 Qxd1+ 9. Rxd1 Nbd7) 8. Bxf6 $14 {[%emt 0:12:00]} gxf6 {[%emt 0:00:09]} 9. Bxc4 {[%emt 0:09:10]} Bxc3+ {[%emt 0:00:30] White has an edge.} 10. bxc3 {[%emt 0:00:15] [#]} Nc6 $146 {[%emt 0:15:19]} ({Predecessor:} 10... Qxc3+ 11. Nd2 Qe5 12. O-O O-O 13. Qg4+ Qg5 14. Qxg5+ fxg5 15. Rad1 Bd7 16. f4 gxf4 17. Rxf4 {0-1 Basson,H (1710)-Lovakovic,F (2110) LSS No Engine Cup 18 Preliminary 6 2010}) 11. O-O {[%emt 0:02:24]} Qxc5 {[%emt 0:00:12]} 12. Bb3 {[%emt 0:01:05]} b6 {[%emt 0:00:36]} 13. Qd2 {[%emt 0:18:58]} (13. Re1 {simplifies} Bb7 14. Qd2 Ne5 15. Nxe5 Qxe5 16. Rad1) 13... Ke7 {[%emt 0:07:35]} 14. Rad1 {[%emt 0:03:34]} (14. Rfe1 $5 {[%cal Re4e5]}) 14... Rd8 $1 {[%emt 0:11:55]} 15. Qf4 {[%emt 0:08:08][%cal Oe4e5]} Ba6 {[%emt 0:01:51]} 16. Qc7+ {[%emt 0:17:19]} Kf8 {[%emt 0:12:20][%cal Be7f8,Bf8f7,Bf7e8][%mdl 32]} 17. Bxe6 {[%emt 0:01:18] [#]} fxe6 {[%emt 0:01:03]} (17... Qe7 $1 $17 {[%cal Re7c7]} 18. Rxd8+ (18. Qxc6 Bxf1 19. Rxd8+ Rxd8 $17) 18... Rxd8 19. Qxc6 Bxf1) 18. Qxh7 $11 {[%emt 0:00:15]} Qe7 {[%emt 0:03:20]} (18... Qxc3 $2 19. Qh8+ Kf7 20. Ng5+ fxg5 21. Qxc3 $18) 19. Qh8+ {[%emt 0:03:37]} Kf7 {[%emt 0:00:08]} 20. Qh7+ {[%emt 0:00:23]} Ke8 {[%emt 0:02:17]} 21. Qg8+ {[%emt 0:00:16]} Qf8 {[%emt 0:00:05]} 22. Qxe6+ {[%emt 0:00:17]} Ne7 {[%emt 0:00:06]} 23. Rfe1 {[%emt 0:01:15]} Qf7 {[%emt 0:01:37] Really sharp!} 24. Qh3 {[%emt 0:03:03]} Rxd1 {[%emt 0:07:28]} (24... Qxa2 $2 25. Rd5 Rxd5 26. exd5 Qxd5 27. Qh7 $18 (27. Qh8+ Kd7 $11)) 25. Rxd1 {[%emt 0:00:02]} Be2 {[%emt 0:04:22]} 26. Rd2 {[%emt 0:05:17]} Bxf3 {[%emt 0:00:17]} (26... Bb5 27. Qh8+ Ng8 28. Ne5 fxe5 29. Qxe5+ Kf8 30. Qxb5 $16) 27. Qxf3 {[%emt 0:00:04][%cal Oe4e5] Threatens to win with e5!} Rc8 {[%emt 0:00:29]} 28. h4 {[%emt 0:00:40]} Rc5 {[%emt 0:07:06]} 29. g3 {[%emt 0:08:16]} (29. Qd3 Qc4 30. Qxc4 Rxc4 $17) (29. e5 $11 Rd5 30. Rxd5 Nxd5 31. c4) 29... Qe6 $15 {[%emt 0:04:52]} 30. Kg2 {[%emt 0:02:56]} Qe5 {[%emt 0:01:32] Black is more active.} (30... Ng6 $17) 31. Rd4 $11 {[%emt 0:05:00]} ({Much worse is} 31. Qd3 Rxc3 32. Qe2 Rc1 $17) 31... Kf7 {[%emt 0:04:16]} 32. Qe3 {[%emt 0:01:41]} Kg7 {[%emt 0:02:29]} 33. Rd7 {[%emt 0:01:01]} a5 {[%emt 0:05:30]} 34. Qd4 {[%emt 0:01:13]} Kf7 {[%emt 0:00:28]} 35. Rb7 {[%emt 0:00:36]} Qe6 {[%emt 0:01:14]} 36. h5 $2 {[%emt 0:00:30][%mdl 8192]} Rxh5 $19 {[%emt 0:00:33] ...Kg6 would be deadly.} 37. Rxb6 {[%emt 0:00:10]} Qh3+ {[%emt 0:00:37]} (37... Qxa2 {leads to mate.} 38. Qxf6+ (38. Rxf6+ Ke8 $16) 38... Ke8 39. Rb8+ Kd7 40. Rb7+ Kc8 41. Rxe7) 38. Kf3 {[%emt 0:00:01] [#]} Re5 {[%emt 0:00:23]} (38... Qh1+ $1 $19 39. Ke2 Re5) 39. Ke2 {[%emt 0:01:19]} (39. c4 $17 {was worth a try.}) 39... Qg4+ {[%emt 0:01:43]} 40. f3 $2 {[%emt 0:00:29]} (40. Kd2 {is the only way for White.} Qxe4 41. Qxe4 Rxe4 42. Kd3) 40... Qxg3 {[%emt 0:00:24] aiming for ...Nd5.} 41. Ra6 $2 {[%emt 0:08:39]} (41. Rd6) 41... Nd5 {[%emt 0:03:31] ...Qg2+ is the strong threat.} 42. Qf2 {[%emt 0:11:30] Prevents Qg2.} Nf4+ {[%emt 0:04:51]} 43. Ke3 {[%emt 0:02:24] [#]} Rxe4+ $3 {[%emt 0:00:36][%mdl 576] Deflection. A cool game by Greet.   Weighted Error Value: White=0.63/Black=0.15 (very precise)} 0-1

[Event "4NCL 2022-2023"]
[Site "Daventry"]
[Date "2023.01.15"]
[Round "4.46"]
[White "McDonald, Neil"]
[Black "Ledger, Dave J"]
[Result "1-0"]
[ECO "C34"]
[WhiteElo "2409"]
[BlackElo "2162"]
[Annotator "TA"]
[PlyCount "93"]
[EventDate "2022.10.20"]
[EventType "team-tourn"]
[EventCountry "ENG"]
[SourceTitle "playchess.com"]
[Source "ChessBase"]
[SourceQuality "1"]
[TimeControl "40/6000+30:2400+30"]

{[%evp 9,93,-66,-68,-66,0,0,0,0,0,0,40,41,30,24,66,64,184,124,176,106,247,243,286,197,195,195,204,131,140,140,142,142,210,200,224,218,217,127,127,123,122,127,159,160,168,187,215,208,215,197,219,207,234,231,237,218,223,206,208,195,243,237,232,242,240,240,250,239,558,558,554,546,543,522,541,466,531,448,1622,191,1851,1856,1445,1193,29970,29971]} 1. e4 {[%emt 0:02:38]} e5 {[%emt 0:00:12]} 2. f4 {[%emt 0:00:27]} exf4 {[%emt 0:00:25]} 3. Nf3 {[%emt 0:00:08]} Nf6 {[%emt 0:01:17]} 4. e5 {[%emt 0:00:57]} Nh5 {[%emt 0:04:50]} 5. Nc3 {[%emt 0:02:21]} d5 {[%emt 0:05:02]} 6. Be2 {[%emt 0:06:11] C34: King's Gambit Accepted: 3 Nf3: 3...Nf6 and 3...d6.} Bg4 {[%emt 0:07:31]} (6... Nc6 $15) 7. O-O $11 {[%emt 0:02:10]} Nc6 {[%emt 0:08:19]} 8. d4 {[%emt 0:01:47] The position is equal.} g5 {[%emt 0:04:23] [#]} 9. h3 $146 {[%emt 0:16:00]} ({Predecessor:} 9. e6 Bxe6 10. Nxg5 Qxg5 11. Bxh5 Rg8 12. g3 Qg7 13. Bxf4 Qxd4+ 14. Qxd4 Nxd4 15. Bxc7 {0-1 Petro,J (2007)-Menyhart,T (2089) HUN-chT2 Barcza 1516 2015 (7.8)}) 9... Bxf3 {[%emt 0:18:03]} (9... Be6 $5 {[%cal Rh5g3]}) 10. Bxf3 {[%emt 0:03:44]} Ng3 {[%emt 0:00:07]} 11. Nxd5 {[%emt 0:11:57][%cal Oc1f4] Bxf4! would be deadly.} Bg7 {[%emt 0:05:08]} 12. Re1 {[%emt 0:04:14]} h5 {[%emt 0:04:18]} (12... Rb8 $14) 13. b3 {[%emt 0:14:45]} ({White should try} 13. h4 $1 $18 {[%cal Rh4g5] Strongly threatening hxg5.} g4 14. Nf6+ (14. Bxf4 gxf3 15. Qxf3 Nf5 $16) 14... Kf8 15. Bxc6 (15. Bxf4 gxf3 16. Bxg3 Bxf6 $14) 15... bxc6 16. Bxf4) 13... Kf8 {[%emt 0:17:44]} (13... O-O $16) 14. c4 {[%emt 0:04:11]} ({Better is} 14. Qd3 $18) 14... Qd7 {[%emt 0:01:50] [#]} (14... Rh6 $16) 15. h4 $1 $18 {[%emt 0:08:16][%mdl 576] Deflection} g4 {[%emt 0:02:16]} (15... Nf5 16. hxg5) 16. Bxf4 {[%emt 0:01:07]} gxf3 {[%emt 0:03:44]} 17. Bxg3 {[%emt 0:00:17][%cal Bf4g3,Bg3f2,Bf2c5][%mdl 32]} Qg4 {[%emt 0:00:41]} 18. Qxf3 {[%emt 0:02:59]} Qxf3 {[%emt 0:00:31]} 19. gxf3 {[%emt 0:00:10]} Nxd4 {[%emt 0:00:12]} 20. Re4 $1 {[%emt 0:02:56]} (20. Nxc7 Rc8 21. e6 fxe6 $14) 20... Nf5 {[%emt 0:03:19]} (20... Ne6 $16 {was necessary.} 21. Rd1 Rd8) 21. Bf2 {[%emt 0:01:30]} (21. Nxc7 $2 Nxg3 22. Ree1 Rd8 $19) 21... c6 {[%emt 0:02:18]} 22. Bc5+ {[%emt 0:02:46]} Kg8 {[%emt 0:00:11] [#]} 23. Ne7+ {[%emt 0:01:01]} (23. Nf6+ $1 $18 Bxf6 24. exf6) 23... Nxe7 $16 {[%emt 0:00:59]} 24. Bxe7 {[%emt 0:00:07]} Re8 {[%emt 0:00:40] [#]} 25. Bd6 {[%emt 0:01:09] White is more active.} Rh6 {[%emt 0:01:46] aiming for ...Rxd6.} 26. Rae1 {[%emt 0:00:45]} Bf8 {[%emt 0:00:21]} 27. c5 {[%emt 0:01:12]} b6 {[%emt 0:00:43]} 28. b4 {[%emt 0:01:42]} Be7 {[%emt 0:01:43]} 29. Kf2 {[%emt 0:01:59]} Re6 {[%emt 0:00:41]} 30. Bxe7 {[%emt 0:02:02]} R8xe7 $18 {[%emt 0:00:16][%mdl 4096] Endgame KRR-KRR} 31. f4 {[%emt 0:01:49][%cal Bf3f4,Bf4f5][%mdl 32]} Rd7 {[%emt 0:00:25]} 32. f5 {[%emt 0:00:55]} Re8 {[%emt 0:00:09]} 33. cxb6 {[%emt 0:00:55]} axb6 {[%emt 0:00:05]} 34. Kf3 {[%emt 0:00:56]} Rd2 {[%emt 0:01:07]} (34... Ra8 {is a better defense.} 35. Rc4 (35. Rg1+ Kf8 $18) 35... c5 36. bxc5 bxc5) 35. R1e2 {[%emt 0:00:37]} Rd1 {[%emt 0:00:36]} 36. Kf4 {[%emt 0:03:57]} Rg1 {[%emt 0:02:19]} 37. e6 {[%emt 0:01:45]} fxe6 {[%emt 0:02:12]} 38. fxe6 {[%emt 0:00:22] Ke5 is the strong threat.} ({Don't take} 38. Rxe6 $6 Rxe6 39. fxe6 Kf8) 38... Kg7 $2 {[%emt 0:00:34]} (38... Rg6 {is more resistant.} 39. a4 Rf6+ 40. Kg3 (40. Kg5 Kg7 $18) 40... Rf5) 39. Ke5 {[%emt 0:02:05]} Rd1 {[%emt 0:00:25]} 40. Rg2+ {[%emt 0:01:14]} Kf8 {[%emt 0:00:18]} 41. Rf4+ {[%emt 0:41:29]} Ke7 {[%emt 0:42:56]} 42. Rg7+ {[%emt 0:02:23]} Kd8 {[%emt 0:00:18]} 43. Kf6 {[%emt 0:00:00]} Re1 {[%emt 0:00:00]} (43... b5 $142 44. Rf3 Kc8) 44. Rd4+ {[%emt 0:00:00]} Kc8 {[%emt 0:00:00]} 45. Rd6 {[%emt 0:00:00]} Rf1+ {[%emt 0:00:00]} 46. Kg6 {[%emt 0:00:00]} Rg1+ {[%emt 0:00:00]} 47. Kf7 {[%emt 0:00:00] Weighted Error Value: White=0.17 (very precise) /Black=0.55} (47. Kxh5 $2 {leads to mate.} Rh8+ {[%mdl 64] Skewer}) 1-0

[Event "4NCL 2022-2023"]
[Site "Daventry"]
[Date "2023.01.15"]
[Round "4.47"]
[White "Ledger, Stephen C"]
[Black "Toma, Katarzyna"]
[Result "1/2-1/2"]
[ECO "D00"]
[WhiteElo "1980"]
[BlackElo "2232"]
[Annotator "TA"]
[PlyCount "80"]
[EventDate "2022.10.20"]
[EventType "team-tourn"]
[EventCountry "ENG"]
[SourceTitle "playchess.com"]
[Source "ChessBase"]
[SourceQuality "1"]
[TimeControl "40/6000+30:2400+30"]

{[%evp 9,80,0,0,0,0,0,0,0,0,-62,-73,-77,-76,-70,-70,-76,-80,-79,-61,-89,-84,-102,-60,-86,-86,-85,-86,-79,-88,-98,-38,-35,-22,-22,0,0,2,0,0,0,0,0,0,0,0,0,0,0,0,-62,0,0,0,0,0,0,0,0,0,0,0,0,0,0,0,0,0,0,0,0,15,15,15]} 1. d4 {[%emt 0:02:56]} Nf6 {[%emt 0:00:07]} 2. Bg5 {[%emt 0:00:20]} d5 {[%emt 0:00:10]} 3. e3 {[%emt 0:01:49]} c5 {[%emt 0:00:29]} 4. c3 {[%emt 0:02:22]} Qb6 {[%emt 0:00:50]} 5. Qb3 {[%emt 0:03:36]} Nc6 {[%emt 0:00:25]} 6. Nd2 {[%emt 0:04:37] D00: 1 d4 d5: Unusual lines.} Bf5 {[%emt 0:02:17]} 7. dxc5 {[%emt 0:04:10]} Qxc5 {[%emt 0:00:43]} (7... Qxb3 8. axb3 Ne4 9. Nxe4 Bxe4 10. b4 $16) 8. Ngf3 {[%emt 0:04:47]} ({Don't play} 8. Qxb7 Rb8 9. Nb3 Rxb7 $17) 8... e5 {[%emt 0:22:59]} 9. Qb5 {[%emt 0:16:25]} ({Of course not} 9. Qxb7 Rb8 10. Qa6 (10. Qc7 $2 Bd6 $19 {[%mdl 64] Trapped Piece}) 10... Rxb2 $17) (9. Bb5 $11) 9... Qxb5 $15 {[%emt 0:08:13]} 10. Bxb5 {[%emt 0:00:11] [#]} Nd7 {[%emt 0:00:08] [#]} 11. O-O $146 {[%emt 0:06:09]} ({Predecessor:} 11. Nh4 Be6 12. e4 dxe4 13. Nxe4 f5 14. Nd2 Kf7 15. Be2 g6 16. Bc4 Bxc4 17. Nxc4 {1-0 Ubezio,M (2085)-Siclari,G (2075) Biella Vercelli Province-ch 2015 (4)}) 11... f6 {[%emt 0:01:04]} 12. Bh4 {[%emt 0:00:29]} g5 {[%emt 0:05:24]} 13. Bg3 {[%emt 0:00:44]} h5 {[%emt 0:00:25] Threatens to win with ...h4.} 14. h4 {[%emt 0:03:47]} g4 {[%emt 0:00:09]} 15. Ne1 {[%emt 0:02:09]} Bc5 {[%emt 0:02:51]} 16. Nb3 {[%emt 0:09:33]} Bb6 {[%emt 0:00:16]} 17. Rd1 {[%emt 0:03:41]} a6 {[%emt 0:04:33]} 18. Bd3 {[%emt 0:03:56]} Be6 {[%emt 0:10:21]} 19. Nc2 {[%emt 0:07:48]} Rg8 {[%emt 0:04:18]} (19... Ne7 $17) 20. e4 {[%emt 0:05:21]} d4 {[%emt 0:19:43]} 21. cxd4 {[%emt 0:01:05]} Bxb3 {[%emt 0:00:10]} 22. axb3 {[%emt 0:00:09]} Nxd4 {[%emt 0:00:04]} 23. Nxd4 {[%emt 0:00:32]} Bxd4 {[%emt 0:00:06]} 24. Bc4 {[%emt 0:00:25]} Rg7 {[%emt 0:01:05]} 25. Kh2 {[%emt 0:05:27]} Nb6 {[%emt 0:13:23]} 26. Be2 {[%emt 0:03:25]} Rc8 {[%emt 0:06:17]} 27. Rd2 {[%emt 0:01:06] Repels Rc2} Rd7 {[%emt 0:00:32]} 28. Rfd1 {[%emt 0:03:10]} Rcd8 {[%emt 0:00:49][%cal Od4f2] ...Bxf2! is the strong threat.} 29. Kh1 {[%emt 0:04:53]} (29. Rc2 $11) 29... Kf7 {[%emt 0:00:22]} (29... Bxb2 $15 30. Rxd7 Nxd7) 30. f3 $11 {[%emt 0:00:53] The position is equal.} gxf3 {[%emt 0:00:14]} 31. gxf3 {[%emt 0:00:57]} Bxb2 {[%emt 0:02:29][%mdl 64] [#] Deflection} 32. Rxd7+ {[%emt 0:01:08]} Rxd7 {[%emt 0:00:06]} 33. f4 {[%emt 0:00:51]} Kg6 {[%emt 0:01:26]} 34. f5+ {[%emt 0:00:39]} Kh6 {[%emt 0:00:07]} 35. Be1 {[%emt 0:02:28]} Rxd1 {[%emt 0:01:38]} 36. Bxd1 {[%emt 0:00:06]} Bc1 {[%emt 0:00:11]} 37. Kg2 {[%emt 0:01:02]} Nd7 {[%emt 0:00:21]} 38. Bb4 {[%emt 0:00:32]} b6 {[%emt 0:02:23]} 39. Be2 {[%emt 0:01:51]} Nc5 {[%emt 0:01:26]} 40. Bxc5 {[%emt 0:00:53]} bxc5 {[%emt 0:00:06] Weighted Error Value: White=0.09 (flawless) /Black=0.07 (flawless)} 1/2-1/2